bitfinex-derivatives/quotes_SOLF0:USTF0_20241105
["timestamp","ask_amount","ask_price","bid_price","bid_amount"]
[1730776700448,9.68907048,158.87,158.8,9.68907048]
[1730776701656,9.68907048,158.85,158.8,9.68907048]
[1730776702361,12.83877048,158.85,158.82,3.1501]
[1730776704359,9.68907048,158.83,158.79,12.64907048]
[1730776704555,9.68907048,158.82,158.77,9.68907048]
[1730776704756,4.2213,158.91,158.76,12.64907048]
[1730776704757,9.68907048,158.81,158.76,12.64907048]
[1730776705059,9.68907048,158.79,158.74,9.68907048]
[1730776705455,9.68907048,158.78,158.73,2.96]
[1730776705665,3.1513,158.77,158.73,2.96]
[1730776706459,3.1513,158.77,158.74,3.1518]
[1730776706651,3.1513,158.77,158.72,12.64907048]
[1730776707261,3.1513,158.77,158.73,3.1519]
[1730776707674,12.84037048,158.77,158.73,3.1519]
[1730776707859,9.68907048,158.77,158.71,9.68907048]
[1730776708059,3.1515,158.76,158.73,3.152]
[1730776708763,9.68907048,158.78,158.72,9.68907048]
[1730776709258,2.96,158.81,158.71,9.68907048]
[1730776709259,9.68907048,158.77,158.71,9.68907048]
[1730776710261,3.1515,158.76,158.73,3.1519]
[1730776710969,3.1516,158.75,158.72,3.1522]
[1730776711461,12.84067048,158.75,158.71,3.1524]
[1730776712360,9.68907048,158.75,158.71,3.1524]
[1730776712661,3.1518,158.74,158.71,3.1524]
[1730776713271,12.84137048,158.72,158.67,11.01897048]
[1730776713459,12.84137048,158.72,158.68,2.96]
[1730776713656,9.68907048,158.72,158.67,9.68907048]
[1730776713864,9.68907048,158.72,158.67,12.64907048]
[1730776714166,9.68907048,158.71,158.66,3.1533]
[1730776715271,9.68907048,158.69,158.65,2.96]
[1730776715865,9.68907048,158.69,158.64,12.84267048]
[1730776716065,3.153,158.68,158.64,12.84267048]
[1730776718171,9.68907048,158.68,158.62,9.68907048]
[1730776718377,2.96,158.72,158.59,12.62907048]
[1730776718378,9.68907048,158.65,158.59,12.62907048]
[1730776718583,9.68907048,158.65,158.59,9.68907048]
[1730776719087,9.68907048,158.65,158.62,3.154]
[1730776719482,9.68907048,158.65,158.59,9.68907048]
[1730776719679,9.68907048,158.62,158.58,2.94]
[1730776720079,12.84337048,158.62,158.57,9.68907048]
[1730776720276,9.68907048,158.62,158.57,2.94]
[1730776720684,9.68907048,158.62,158.59,3.1546]
[1730776720886,9.68907048,158.62,158.57,12.62907048]
[1730776722488,9.68907048,158.62,158.6,3.1545]
[1730776726492,9.68907048,158.64,158.59,9.68907048]
[1730776727083,9.68907048,158.65,158.59,9.68907048]
[1730776728197,12.84267048,158.65,158.59,9.68907048]
[1730776728691,9.68907048,158.64,158.61,3.1542]
[1730776730295,9.68907048,158.62,158.61,3.1542]
[1730776730997,12.84297048,158.64,158.61,3.1542]
[1730776732089,9.68907048,158.64,158.59,12.62907048]
[1730776732284,9.68907048,158.64,158.62,3.154]
[1730776732484,9.68907048,158.64,158.59,12.62907048]
[1730776733091,12.84287048,158.64,158.61,3.1543]
[1730776733289,9.68907048,158.64,158.59,2.94]
[1730776734097,12.84297048,158.64,158.61,3.1544]
[1730776735094,9.68907048,158.64,158.59,2.94]
[1730776735395,9.68907048,158.64,158.62,3.154]
[1730776736004,9.68907048,158.67,158.63,2.94]
[1730776736201,9.68907048,158.72,158.65,9.68907048]
[1730776736397,9.68907048,158.72,158.67,9.68907048]
[1730776736705,9.68907048,158.72,158.7,3.1524]
[1730776736903,4.1741,158.75,158.66,9.68907048]
[1730776737208,9.68907048,158.69,158.66,2.94]
[1730776737410,15.13126259,158.73,158.66,2.94]
[1730776739305,3.1524,158.71,158.67,3.1532]
[1730776741207,15.13126259,158.73,158.66,2.94]
[1730776741408,19.30536259,158.75,158.66,2.94]
[1730776742006,3.1521,158.73,158.69,3.1527]
[1730776742209,19.30536259,158.75,158.69,3.1527]
[1730776742713,15.13126259,158.73,158.67,2.94]
[1730776742911,15.13126259,158.73,158.63,1.4187]
[1730776742912,15.13126259,158.73,158.66,2.94]
[1730776743113,3.1525,158.71,158.67,3.1532]
[1730776745110,3.1526,158.7,158.67,3.1532]
[1730776746409,15.13126259,158.73,158.66,2.94]
[1730776746609,15.13126259,158.73,158.68,3.1529]
[1730776747118,3.1523,158.72,158.68,3.1529]
[1730776747914,3.1523,158.72,158.69,3.1527]
[1730776748519,3.1523,158.72,158.68,3.1529]
[1730776748913,3.1523,158.72,158.66,2.94]
[1730776749820,3.1523,158.72,158.68,3.1529]
[1730776750216,3.1528,158.7,158.64,15.13126259]
[1730776750416,3.1528,158.7,158.66,6.1133]
[1730776750719,15.13126259,158.73,158.66,6.1133]
[1730776751922,3.1527,158.7,158.66,2.96]
[1730776752125,15.13126259,158.73,158.66,2.96]
[1730776752525,3.1532,158.67,158.66,2.96]
[1730776752724,3.1532,158.67,158.64,2.96]
[1730776753017,15.13126259,158.7,158.64,2.96]
[1730776753218,3.1537,158.65,158.62,2.96]
[1730776754323,3.1537,158.65,158.61,3.1543]
[1730776754525,3.1537,158.65,158.62,2.96]
[1730776754824,3.1537,158.65,158.61,6.1143]
[1730776756220,3.1538,158.64,158.61,6.1143]
[1730776756621,15.13126259,158.68,158.61,2.96]
[1730776756929,3.1539,158.64,158.61,2.96]
[1730776761525,12.84338504,158.65,158.61,2.96]
[1730776762926,9.68968504,158.67,158.61,12.64968504]
[1730776763227,9.68968504,158.68,158.63,9.68968504]
[1730776763621,12.84288504,158.68,158.64,3.1537]
[1730776764523,9.68968504,158.67,158.64,3.1537]
[1730776764826,3.1535,158.66,158.62,12.84378504]
[1730776765029,9.68968504,158.66,158.6,9.68968504]
[1730776765227,9.68968504,158.66,158.61,2.96]
[1730776765425,3.1538,158.65,158.61,6.1142]
[1730776765930,3.1538,158.65,158.61,2.96]
[1730776766430,9.68968504,158.66,158.61,2.96]
[1730776766632,9.68968504,158.67,158.62,9.68968504]
[1730776768322,12.84288504,158.67,158.64,3.1537]
[1730776771032,9.68968504,158.67,158.62,9.68968504]
[1730776771225,13.74678504,158.69,158.63,9.68968504]
[1730776771630,3.1531,158.68,158.64,3.1537]
[1730776771830,9.68968504,158.67,158.64,3.1537]
[1730776772234,12.84288504,158.67,158.64,3.1537]
[1730776773931,9.68968504,158.67,158.62,9.68968504]
[1730776774134,3.1534,158.66,158.63,3.154]
[1730776775235,3.1534,158.66,158.63,6.114]
[1730776777943,12.84358504,158.64,158.6,3.1545]
[1730776778546,3.154,158.63,158.6,3.1545]
[1730776779037,9.68968504,158.66,158.6,9.68968504]
[1730776779438,9.68968504,158.66,158.6,3.1544]
[1730776780138,3.1539,158.64,158.6,3.1544]
[1730776782246,12.84358504,158.64,158.6,3.1544]
[1730776782645,12.84358504,158.64,158.61,3.1543]
[1730776784447,9.68968504,158.67,158.61,12.62968504]
[1730776784645,13.74678504,158.69,158.63,9.68968504]
[1730776785042,15.55648504,158.69,158.65,3.1534]
[1730776785346,12.40358504,158.69,158.65,3.1534]
[1730776785950,3.153,158.68,158.65,3.1534]
[1730776786151,12.40358504,158.69,158.66,3.1534]
[1730776786745,9.68968504,158.69,158.66,3.1534]
[1730776787145,9.68968504,158.7,158.66,3.1534]
[1730776788347,12.84238504,158.7,158.66,3.1534]
[1730776788556,9.68968504,158.7,158.66,3.1534]
[1730776789243,3.1528,158.69,158.66,3.1534]
[1730776790939,12.84198504,158.72,158.66,9.68968504]
[1730776791448,9.68968504,158.73,158.71,3.1524]
[1730776791641,9.68968504,158.73,158.69,2.94]
[1730776791955,9.68968504,158.77,158.71,9.68968504]
[1730776792754,3.1515,158.76,158.72,3.1521]
[1730776795863,9.68968504,158.78,158.72,9.68968504]
[1730776796149,9.68968504,158.78,158.73,2.94]
[1730776796457,9.68968504,158.78,158.75,3.1516]
[1730776796458,3.1511,158.78,158.75,3.1516]
[1730776796949,3.1511,158.78,158.74,12.84138504]
[1730776797641,9.68968504,158.79,158.75,3.1514]
[1730776797851,3.1508,158.8,158.75,9.68968504]
[1730776798346,3.1508,158.8,158.76,3.1513]
[1730776798652,3.1508,158.79,158.76,3.1513]
[1730776799056,9.68968504,158.81,158.75,9.68968504]
[1730776799251,12.84008504,158.81,158.75,9.68968504]
[1730776800152,3.1508,158.8,158.76,3.1513]
[1730776800452,9.68968504,158.81,158.75,9.68968504]
[1730776800652,3.1509,158.79,158.75,12.84128504]
[1730776800850,3.1509,158.79,158.73,2.94]
[1730776800851,9.68968504,158.79,158.73,9.68968504]
[1730776801057,9.68968504,158.78,158.74,2.94]
[1730776802053,9.68968504,158.78,158.73,3.1519]
[1730776802054,3.1513,158.77,158.73,3.1519]
[1730776803454,3.1513,158.77,158.73,12.84158504]
[1730776804450,3.1513,158.77,158.73,9.68968504]
[1730776804649,3.1513,158.77,158.74,3.1518]
[1730776805144,3.1513,158.77,158.73,12.84158504]
[1730776806356,3.1517,158.75,158.72,15.78178504]
[1730776806653,9.68968504,158.76,158.72,2.94]
[1730776806854,3.1517,158.75,158.72,2.94]
[1730776807048,9.68968504,158.76,158.72,2.94]
[1730776807749,3.1519,158.74,158.72,2.94]
[1730776808858,3.1519,158.74,158.7,9.68968504]
[1730776809057,3.1519,158.74,158.7,12.68968504]
[1730776809262,3.1519,158.74,158.71,3.1524]
[1730776811654,3.1518,158.74,158.71,3.1523]
[1730776812062,9.68968504,158.81,158.73,9.68968504]
[1730776812360,9.68968504,158.81,158.75,9.68968504]
[1730776813056,9.68968504,158.81,158.76,9.68968504]
[1730776813849,3.1507,158.8,158.76,12.84098504]
[1730776815163,3.1512,158.78,158.75,9.68968504]
[1730776815460,9.68968504,158.79,158.75,9.68968504]
[1730776815655,12.84058504,158.79,158.75,12.84118504]
[1730776817060,3.1512,158.78,158.75,9.68968504]
[1730776818257,3.1525,158.71,158.67,12.84278504]
[1730776818566,9.68968504,158.7,158.64,9.68968504]
[1730776819462,3.153,158.68,158.64,12.84328504]
[1730776819763,9.68968504,158.7,158.64,9.68968504]
[1730776820156,3.1529,158.69,158.65,3.1535]
[1730776821467,12.84228504,158.7,158.67,3.1531]
[1730776822156,9.68968504,158.72,158.65,9.68968504]
[1730776822364,3.1525,158.71,158.67,3.1532]
[1730776824056,3.1525,158.71,158.68,3.153]
[1730776824365,3.1525,158.71,158.67,9.68968504]
[1730776825368,9.68968504,158.7,158.66,9.68968504]
[1730776825563,9.68968504,158.69,158.64,12.68968504]
[1730776825964,9.68968504,158.69,158.64,9.68968504]
[1730776826363,3.1532,158.67,158.64,12.84338504]
[1730776826567,9.68968504,158.69,158.62,12.68968504]
[1730776827072,9.68968504,158.67,158.62,9.68968504]
[1730776827570,3.1535,158.66,158.62,12.84378504]
[1730776828071,9.68968504,158.67,158.62,12.84378504]
[1730776828371,9.68968504,158.67,158.61,3.0]
[1730776828372,9.68968504,158.67,158.61,12.84398504]
[1730776828970,3.1536,158.66,158.61,12.84398504]
[1730776829158,9.68968504,158.67,158.63,3.154]
[1730776829360,9.68968504,158.68,158.63,3.154]
[1730776829569,3.1533,158.67,158.63,3.154]
[1730776830064,3.1533,158.67,158.64,3.1538]
[1730776831473,3.1533,158.67,158.63,3.1538]
[1730776831778,12.68968504,158.7,158.64,9.68968504]
[1730776832268,3.1533,158.67,158.62,9.68968504]
[1730776832772,3.1533,158.67,158.63,3.1539]
[1730776832961,3.1534,158.66,158.63,3.1539]
[1730776834464,9.68968504,158.68,158.63,3.1539]
[1730776834768,3.1532,158.67,158.64,12.84348504]
[1730776835475,3.1534,158.66,158.63,3.154]
[1730776835683,9.68968504,158.68,158.63,3.154]
[1730776836372,3.1533,158.67,158.63,3.154]
[1730776836671,9.68968504,158.68,158.63,3.154]
[1730776837269,9.68968504,158.66,158.6,12.84418504]
[1730776837471,12.68968504,158.66,158.6,12.84418504]
[1730776837670,9.68968504,158.64,158.58,9.68968504]
[1730776838671,3.1543,158.62,158.59,3.1547]
[1730776840173,3.1543,158.62,158.58,12.84458504]
[1730776842475,12.84398504,158.62,158.58,3.1549]
[1730776842677,3.1544,158.61,158.58,3.1549]
[1730776844378,3.1547,158.6,158.57,3.155]
[1730776849896,9.68968504,158.62,158.57,9.68968504]
[1730776850093,3.1545,158.61,158.58,3.155]
[1730776850296,9.68968504,158.62,158.58,3.155]
[1730776850904,3.1544,158.61,158.58,3.155]
[1730776851408,9.68968504,158.62,158.57,9.68968504]
[1730776851606,3.1545,158.61,158.57,12.84468504]
[1730776856404,3.1545,158.61,158.57,9.68968504]
[1730776856610,3.1545,158.61,158.58,3.1548]
[1730776858296,9.68968504,158.64,158.59,9.68968504]
[1730776858605,9.68968504,158.65,158.59,9.68968504]
[1730776859499,9.68968504,158.63,158.57,9.68968504]
[1730776860207,3.1544,158.62,158.58,3.1549]
[1730776860804,3.1544,158.61,158.58,3.1549]
[1730776861813,3.1547,158.6,158.57,12.84488504]
[1730776866306,3.1547,158.6,158.58,3.155]
[1730776866506,3.1545,158.61,158.57,9.68968504]
[1730776868507,3.1545,158.61,158.58,3.1549]
[1730776869512,9.68968504,158.63,158.57,9.68968504]
[1730776869813,9.68968504,158.63,158.57,12.84468504]
[1730776870606,3.1546,158.61,158.57,3.155]
[1730776871905,3.1546,158.61,158.56,9.68968504]
[1730776872110,3.1546,158.61,158.58,3.155]
[1730776876407,9.68968504,158.61,158.56,9.68968504]
[1730776876607,3.1548,158.59,158.56,3.1553]
[1730776877010,3.1548,158.59,158.55,3.0]
[1730776877515,3.1547,158.6,158.57,3.1552]
[1730776878522,9.68968504,158.6,158.55,3.0]
[1730776878711,9.68968504,158.58,158.53,9.68968504]
[1730776878905,5.83771425,158.67,158.52,9.68968504]
[1730776878906,9.68968504,158.57,158.52,9.68968504]
[1730776880221,3.1555,158.56,158.52,9.68968504]
[1730776880412,3.1555,158.56,158.53,3.1559]
[1730776883820,12.84478504,158.58,158.53,9.68968504]
[1730776884619,3.1555,158.56,158.53,3.1558]
[1730776890421,9.68968504,158.58,158.51,11.09388504]
[1730776890615,12.84468504,158.58,158.55,3.1554]
[1730776906536,12.84478504,158.58,158.54,3.1556]
[1730776907727,3.1549,158.59,158.53,9.68968504]
[1730776908030,9.68968504,158.6,158.53,9.68968504]
[1730776909327,3.155,158.58,158.55,3.1554]
[1730776912930,9.68968504,158.6,158.53,12.60968504]
[1730776913126,12.84478504,158.58,158.54,3.1557]
[1730776913735,3.1552,158.57,158.54,3.1557]
[1730776917438,9.68968504,158.62,158.55,9.68968504]
[1730776917638,1.3408,158.64,158.58,9.68968504]
[1730776917840,1.3408,158.64,158.59,9.68968504]
[1730776918342,3.1541,158.63,158.59,12.84438504]
[1730776923144,9.68968504,158.63,158.58,9.68968504]
[1730776923344,3.1543,158.62,158.59,3.1548]
[1730776924749,9.68968504,158.68,158.61,9.68968504]
[1730776925045,9.68968504,158.71,158.65,9.68968504]
[1730776925246,9.68968504,158.73,158.67,9.68968504]
[1730776925452,29.95969123,158.75,158.7,9.68968504]
[1730776925648,9.68968504,158.76,158.7,9.68968504]
[1730776925843,9.68968504,158.73,158.69,2.92]
[1730776926240,3.1524,158.71,158.69,2.92]
[1730776926449,9.68968504,158.73,158.69,2.92]
[1730776926951,9.68968504,158.7,158.67,2.92]
[1730776927153,9.68968504,158.68,158.62,2.92]
[1730776927350,1.3692,158.72,158.62,2.92]
[1730776927351,9.68968504,158.66,158.62,2.92]
[1730776927949,9.68968504,158.68,158.62,2.92]
[1730776928250,9.68968504,158.68,158.63,9.68968504]
[1730776928551,12.84268504,158.68,158.63,12.84358504]
[1730776929544,9.68968504,158.69,158.63,9.68968504]
[1730776929745,9.68968504,158.71,158.65,9.68968504]
[1730776930250,11.04798504,158.73,158.67,9.68968504]
[1730776930449,11.04798504,158.73,158.66,2.92]
[1730776930450,17.18278504,158.74,158.7,3.1526]
[1730776930650,14.26278504,158.74,158.7,3.1526]
[1730776931049,14.26278504,158.74,158.69,9.68968504]
[1730776931250,14.26278504,158.74,158.69,12.84238504]
[1730776931451,3.152,158.73,158.69,12.84238504]
[1730776932750,3.1517,158.75,158.7,9.68968504]
[1730776933057,10.98828504,158.77,158.72,9.68968504]
[1730776933252,3.1513,158.77,158.73,12.84158504]
[1730776933752,3.1512,158.77,158.73,12.84168504]
[1730776933955,39.64010311,158.78,158.73,9.68968504]
[1730776934352,3.1512,158.77,158.73,9.68968504]
[1730776934760,39.64010311,158.78,158.73,9.68968504]
[1730776935655,3.1513,158.77,158.73,9.68968504]
[1730776936363,39.64010311,158.78,158.73,9.68968504]
[1730776936759,9.68968504,158.78,158.73,9.68968504]
[1730776937659,3.1513,158.77,158.73,12.84168504]
[1730776938062,9.68968504,158.77,158.71,9.68968504]
[1730776938360,3.1517,158.75,158.71,12.84208504]
[1730776939552,9.68968504,158.77,158.71,9.68968504]
[1730776939756,3.1521,158.73,158.7,12.64968504]
[1730776941356,3.1521,158.73,158.7,15.80228504]
[1730776952755,9.68968504,158.76,158.7,12.64968504]
[1730776952961,3.1519,158.74,158.71,3.1524]
[1730776956468,3.1521,158.73,158.7,15.80228504]
[1730776957863,9.68968504,158.76,158.7,12.64968504]
[1730776958067,3.1523,158.72,158.68,12.84258504]
[1730776958562,3.1523,158.72,158.69,3.1528]
[1730776960569,3.1528,158.69,158.68,9.68968504]
[1730776960867,9.68968504,158.69,158.64,12.60968504]
[1730776961467,9.68968504,158.69,158.64,9.68968504]
[1730776962171,3.1532,158.67,158.64,12.84348504]
[1730776964065,9.68968504,158.69,158.64,12.84348504]
[1730776964266,3.1531,158.68,158.64,12.84348504]
[1730776966577,3.1532,158.67,158.64,12.84348504]
[1730776966874,9.68968504,158.71,158.64,12.84348504]
[1730776967075,3.1531,158.68,158.64,12.84348504]
[1730776969371,9.68968504,158.71,158.65,9.68968504]
[1730776970779,3.1531,158.68,158.65,9.68968504]
[1730776971381,3.1531,158.68,158.64,12.84338504]
[1730776971577,9.68968504,158.68,158.63,2.92]
[1730776971979,3.1533,158.67,158.63,2.92]
[1730776972180,9.68968504,158.68,158.63,2.92]
[1730776973383,3.1535,158.66,158.63,6.074]
[1730776981492,3.1535,158.66,158.63,2.92]
[1730776982090,9.68968504,158.68,158.63,2.92]
[1730776982292,2.92,158.7,158.58,2.8201]
[1730776982293,9.68968504,158.65,158.6,9.68968504]
[1730776982501,9.68968504,158.65,158.6,12.56431857]
[1730776982793,3.1542,158.62,158.6,9.64431857]
[1730776985090,3.1542,158.62,158.6,12.79891857]
[1730776987997,3.1541,158.63,158.6,12.79891857]
[1730776995398,9.68968504,158.65,158.6,9.64431857]
[1730776995698,2.92,158.7,158.59,2.92]
[1730776995699,9.68968504,158.69,158.62,9.68968504]
[1730776996099,3.1534,158.67,158.63,3.1539]
[1730776996307,9.68968504,158.69,158.63,3.1539]
[1730776998907,3.1534,158.66,158.63,3.1539]
[1730777002507,9.68968504,158.66,158.6,9.68968504]
[1730777003208,3.1538,158.64,158.61,3.1542]
[1730777003805,3.1537,158.65,158.62,3.1541]
[1730777004004,9.68968504,158.69,158.63,9.68968504]
[1730777004602,3.1534,158.66,158.63,12.84358504]
[1730777004999,3.1534,158.66,158.63,3.1539]
[1730777016518,3.1536,158.65,158.62,12.84378504]
[1730777017215,3.1536,158.65,158.62,3.1541]
[1730777018013,9.68968504,158.66,158.6,9.68968504]
[1730777018318,3.1538,158.64,158.61,3.1543]
[1730777024127,3.1538,158.64,158.62,3.1542]
[1730777025515,9.68968504,158.66,158.62,3.1542]
[1730777025722,3.1537,158.65,158.62,3.1542]
[1730777026424,9.68968504,158.66,158.62,3.1542]
[1730777026621,3.1536,158.65,158.62,3.1542]
[1730777028523,3.1538,158.64,158.62,3.1542]
[1730777031522,3.154,158.63,158.6,2.92]
[1730777032817,9.68968504,158.66,158.6,2.92]
[1730777033014,3.1542,158.62,158.6,2.92]
[1730777037729,3.1542,158.62,158.6,6.0746]
[1730777040831,3.1542,158.62,158.6,3.1546]
[1730777041426,9.68968504,158.65,158.59,9.68968504]
[1730777041733,3.1543,158.62,158.59,12.84438504]
[1730777043538,9.68968504,158.63,158.58,12.60968504]
[1730777043838,3.1544,158.61,158.58,15.76458504]
[1730777044938,3.1543,158.62,158.58,15.76458504]
[1730777045234,9.68968504,158.63,158.58,15.76458504]
[1730777045635,3.1543,158.62,158.58,15.76458504]
[1730777045935,9.68968504,158.64,158.59,12.84438504]
[1730777046626,3.1543,158.62,158.59,12.84438504]
[1730777050234,3.1543,158.62,158.59,3.1547]
[1730777051339,9.68968504,158.64,158.58,12.60968504]
[1730777051540,3.1541,158.63,158.6,3.1545]
[1730777051740,9.68968504,158.67,158.61,9.68968504]
[1730777052836,3.1537,158.65,158.62,3.154]
[1730777056345,3.1534,158.66,158.63,3.1539]
[1730777056851,2.92,158.69,158.62,12.60968504]
[1730777056852,9.68968504,158.69,158.62,12.60968504]
[1730777057143,3.1531,158.68,158.64,12.84348504]
[1730777057342,3.1531,158.68,158.64,9.68968504]
[1730777057544,3.1531,158.68,158.65,3.1535]
[1730777060844,3.1531,158.68,158.64,9.68968504]
[1730777061044,3.1531,158.68,158.64,12.84338504]
[1730777061242,9.68968504,158.68,158.62,12.60968504]
[1730777061436,9.68968504,158.66,158.61,9.68968504]
[1730777061635,9.68968504,158.65,158.61,2.92]
[1730777061848,9.68968504,158.64,158.61,2.92]
[1730777062046,3.1542,158.62,158.58,12.60968504]
[1730777062247,3.1542,158.62,158.58,15.76448504]
[1730777062544,9.68968504,158.64,158.58,12.84448504]
[1730777062747,9.68968504,158.64,158.58,9.68968504]
[1730777064351,3.1545,158.61,158.58,9.68968504]
[1730777066643,3.1545,158.61,158.58,12.84458504]
[1730777066850,3.1543,158.62,158.58,12.84458504]
[1730777068643,3.1543,158.62,158.59,12.84428504]
[1730777069043,3.1543,158.62,158.59,9.68968504]
[1730777069544,9.68968504,158.64,158.59,9.68968504]
[1730777069746,9.68968504,158.64,158.59,12.84448504]
[1730777070347,3.1543,158.62,158.59,3.1548]
[1730777070951,3.1546,158.61,158.58,9.68968504]
[1730777071342,9.68968504,158.62,158.58,9.68968504]
[1730777071544,3.1547,158.6,158.58,9.68968504]
[1730777072260,3.1548,158.59,158.56,12.84498504]
[1730777072442,3.1548,158.59,158.56,15.76498504]
[1730777073156,9.68968504,158.62,158.56,12.84498504]
[1730777073347,3.1547,158.6,158.56,12.84498504]
[1730777078153,12.84398504,158.62,158.59,3.1548]
[1730777078348,12.60968504,158.64,158.59,9.68968504]
[1730777080151,9.68968504,158.64,158.59,9.68968504]
[1730777080350,3.1544,158.62,158.59,12.84448504]
[1730777081657,3.1544,158.62,158.59,9.68968504]
[1730777085151,3.1544,158.62,158.59,12.84438504]
[1730777085351,3.154,158.64,158.6,9.68968504]
[1730777086259,3.154,158.64,158.6,12.84418504]
[1730777087162,3.154,158.63,158.6,12.84418504]
[1730777088060,9.68968504,158.66,158.6,9.68968504]
[1730777088265,3.1537,158.65,158.62,9.68968504]
[1730777089363,3.1537,158.65,158.62,12.84378504]
[1730777091564,3.1537,158.65,158.62,9.68968504]
[1730777093267,3.1535,158.66,158.63,3.154]
[1730777093561,9.68968504,158.68,158.62,9.68968504]
[1730777093957,1.4107,158.7,158.65,9.68968504]
[1730777094154,1.4107,158.7,158.63,2.92]
[1730777094155,2.7246,158.71,158.66,9.68968504]
[1730777094352,1.3055,158.71,158.66,9.68968504]
[1730777094553,3.153,158.69,158.66,9.68968504]
[1730777096369,9.68968504,158.69,158.63,12.60968504]
[1730777096564,9.68968504,158.67,158.62,15.76378504]
[1730777097366,3.1537,158.65,158.62,15.76378504]
[1730777099957,3.1537,158.65,158.62,15.76388504]
[1730777101564,9.68968504,158.65,158.59,12.84428504]
[1730777101764,9.68968504,158.64,158.59,15.76428504]
[1730777101961,9.68968504,158.64,158.59,2.92]
[1730777102164,3.1543,158.62,158.58,6.0749]
[1730777102364,9.68968504,158.62,158.58,6.0749]
[1730777103267,3.1544,158.61,158.58,6.0749]
[1730777104070,12.84398504,158.62,158.58,6.0749]
[1730777104783,3.1545,158.61,158.58,3.1549]
[1730777105472,9.68968504,158.62,158.57,12.60968504]
[1730777105770,9.68968504,158.6,158.55,2.92]
[1730777106173,3.1553,158.57,158.55,2.92]
[1730777106371,3.1553,158.57,158.54,3.1556]
[1730777106568,9.68968504,158.6,158.54,12.84528504]
[1730777106770,3.155,158.58,158.54,12.84528504]
[1730777113775,9.68968504,158.6,158.54,12.84528504]
[1730777114082,9.68968504,158.58,158.53,9.68968504]
[1730777114880,3.1554,158.56,158.53,12.84558504]
[1730777115079,9.68968504,158.58,158.53,9.68968504]
[1730777116273,3.1552,158.57,158.54,3.1557]
[1730777116477,9.68968504,158.58,158.53,9.68968504]
[1730777116884,9.68968504,158.6,158.54,9.68968504]
[1730777118280,9.68968504,158.61,158.55,9.68968504]
[1730777118483,9.68968504,158.63,158.57,9.68968504]
[1730777118680,12.84368504,158.63,158.6,3.1545]
[1730777119980,3.154,158.63,158.6,3.1545]
[1730777120278,12.84348504,158.64,158.61,3.1542]
[1730777120475,29.96167687,158.71,158.61,3.1542]
[1730777120476,9.68968504,158.69,158.63,9.68968504]
[1730777120677,9.68968504,158.69,158.64,9.68968504]
[1730777121481,9.68968504,158.69,158.64,12.84338504]
[1730777121482,3.1532,158.68,158.64,12.84338504]
[1730777122593,3.1532,158.68,158.64,3.1537]
[1730777122781,12.84288504,158.68,158.64,3.1537]
[1730777123784,16.75718504,158.7,158.64,9.68968504]
[1730777123984,16.98998504,158.7,158.66,3.1532]
[1730777124183,13.83718504,158.7,158.66,3.1532]
[1730777124388,13.83718504,158.7,158.64,9.68968504]
[1730777124586,3.1529,158.69,158.65,3.1535]
[1730777126391,13.83718504,158.7,158.65,3.1535]
[1730777126586,3.1531,158.68,158.65,3.1535]
[1730777127683,3.1531,158.68,158.61,2.92]
[1730777127684,3.1533,158.67,158.63,12.84348504]
[1730777128485,3.1533,158.67,158.63,9.68968504]
[1730777128690,3.1533,158.67,158.64,3.1538]
[1730777131684,29.96167687,158.71,158.61,2.92]
[1730777131685,39.65136191,158.71,158.65,9.68968504]
[1730777131885,29.96167687,158.71,158.67,9.68968504]
[1730777133397,3.1526,158.7,158.67,12.84278504]
[1730777133898,29.96167687,158.71,158.67,12.84278504]
[1730777134094,29.96167687,158.71,158.68,9.68968504]
[1730777134294,9.68968504,158.76,158.72,3.1521]
[1730777134496,12.84148504,158.75,158.71,9.68968504]
[1730777134807,9.68968504,158.73,158.69,6.0728]
[1730777134986,9.68968504,158.73,158.69,2.92]
[1730777135589,3.1523,158.72,158.69,2.92]
[1730777135997,9.68968504,158.7,158.66,6.0734]
[1730777136202,9.68968504,158.7,158.66,3.1534]
[1730777136402,9.68968504,158.7,158.65,12.60968504]
[1730777136696,3.153,158.69,158.65,12.60968504]
[1730777137595,3.153,158.68,158.65,12.84328504]